bitfinex-derivatives/quotes_SOLF0:USTF0_20260104
["timestamp","ask_amount","ask_price","bid_price","bid_amount"]
[1767516563130,0.05554689,134.04,134.01,1.01802938]
[1767516564522,94.9163,134.07,134.01,1.01802938]
[1767516564523,6.7163,134.07,134.01,1.01802938]
[1767516564723,94.8963,134.07,134.01,1.01802938]
[1767516565329,11.97565228,134.08,134.02,0.96690517]
[1767516565516,0.05699167,134.06,134.02,0.96690517]
[1767516566922,0.05699167,134.06,134.02,7.68530517]
[1767516568631,0.05699167,134.06,134.03,0.96690517]
[1767516568831,88.18,134.09,134.04,0.96690517]
[1767516570028,0.05388466,134.08,134.05,0.04719132]
[1767516573833,6.76948466,134.08,134.05,0.04719132]
[1767516578535,0.05388466,134.08,134.02,0.86955685]
[1767516579633,0.05388466,134.08,134.04,0.05365808]
[1767516579837,6.7165,134.06,134.04,0.05365808]
[1767516580438,94.92968466,134.08,134.04,0.05365808]
[1767516586528,6.7159,134.07,134.04,0.05365808]
[1767516587237,6.7164,134.06,134.0,7.58895685]
[1767516588241,0.05293097,134.04,134.02,0.04815317]
[1767516588842,88.16,134.06,134.02,0.91771002]
[1767516589944,0.05388956,134.05,134.02,0.91771002]
[1767516603059,0.05388956,134.05,134.02,0.04815317]
[1767516603263,0.05388956,134.05,134.0,0.87928928]
[1767516603761,0.77004177,134.04,134.0,0.87928928]
[1767516604360,0.77004177,134.04,134.01,0.05260929]
[1767516614562,7.54103133,134.05,134.01,0.05260929]
[1767516619670,7.54103133,134.05,133.98,0.87928928]
[1767516619671,0.77004177,134.03,133.98,0.87928928]
[1767516619969,88.16,134.02,133.96,0.87928928]
[1767516620173,0.77004177,134.01,133.96,0.87928928]
[1767516620374,0.77004177,134.01,133.93,0.87928928]
[1767516620667,0.77004177,134.01,133.96,0.04782804]
[1767516620668,0.05393794,133.98,133.96,0.04782804]
[1767516620866,0.05393794,133.98,133.96,0.92711732]
[1767516621068,0.77004177,134.01,133.96,0.92711732]
[1767516623471,0.05421874,134.0,133.96,0.92711732]
[1767516627882,0.05421874,134.0,133.96,0.04782804]
[1767516628972,6.77411874,134.0,133.96,0.04782804]
[1767516634884,0.05421874,134.0,133.96,0.04782804]
[1767516637489,0.05421874,134.0,133.96,0.88899403]
[1767516638179,88.2,134.04,133.97,0.84116599]
[1767516638678,88.97004177,134.04,133.97,0.84116599]
[1767516639289,0.0540366,134.02,133.99,0.05383284]
[1767516645588,0.0540366,134.02,133.99,0.89499883]
[1767516646492,0.0540366,134.02,133.99,0.05383284]
[1767516662395,6.7181,134.03,133.99,0.84397263]
[1767516663600,0.04857898,134.02,133.99,0.84397263]
[1767516671914,6.7169,134.05,134.0,0.79013979]
[1767516672906,0.04975593,134.04,134.01,0.05742611]
[1767516674311,6.7163,134.07,134.01,0.8475659]
[1767516674612,193.81980555,134.12,134.01,0.8475659]
[1767516674814,5.51440782,134.11,134.01,0.79013979]
[1767516675016,193.81980555,134.12,134.01,0.79013979]
[1767516675611,0.05087783,134.08,134.05,0.05049153]
[1767516677205,6.76627783,134.08,134.05,0.05049153]
[1767516678023,6.76627783,134.08,134.03,0.79013979]
[1767516679223,6.76627783,134.08,134.04,0.05737411]
[1767516681421,0.05087783,134.08,134.04,0.8475139]
[1767516684315,19.03353392,134.16,134.05,0.79013979]
[1767516685022,19.03353392,134.16,134.07,0.79013979]
[1767516685428,0.04967373,134.13,134.1,0.84640991]
[1767516685630,19.03353392,134.16,134.1,0.84640991]
[1767516686527,25.74493392,134.16,134.1,0.84640991]
[1767516686715,0.04813183,134.14,134.1,0.84640991]
[1767516688720,0.04813183,134.14,134.1,7.56070991]
[1767516688916,0.04813183,134.14,134.11,0.79013979]
[1767516689318,0.04813183,134.14,134.1,0.05627012]
[1767516690623,0.04813183,134.14,134.06,7.50922968]
[1767516691828,6.713,134.13,134.09,0.05672531]
[1767516695234,6.7136,134.12,134.09,0.05672531]
[1767516697633,6.7144,134.1,134.03,7.49687318]
[1767516697932,1.20400555,134.11,134.02,0.77897318]
[1767516698129,1.20400555,134.09,134.02,0.77897318]
[1767516698532,6.7159,134.07,134.02,0.77897318]
[1767516698930,0.0502794,134.06,134.03,0.04837427]
[1767516700140,6.717,134.05,134.03,0.04837427]
[1767516700844,0.0502794,134.06,134.03,0.04837427]
[1767516703643,6.7666794,134.06,134.03,0.04837427]
[1767516704541,6.7171,134.05,134.03,0.04837427]
[1767516704742,6.7171,134.05,134.0,0.77897318]
[1767516705245,0.0502794,134.06,134.0,0.77897318]
[1767516705744,6.7666794,134.06,134.02,0.04825606]
[1767516706843,0.0502794,134.06,134.02,0.04825606]
[1767516708149,0.0502794,134.06,133.98,0.77897318]
[1767516709151,0.0502794,134.06,134.01,0.05692145]
[1767516710045,6.7175,134.04,134.01,0.05692145]
[1767516715351,94.9270794,134.06,134.01,0.83589463]
[1767516719053,94.9270794,134.06,134.01,0.05692145]
[1767516721059,88.2102794,134.06,134.01,0.90770755]
[1767516722151,88.2102794,134.06,134.01,7.62650755]
[1767516726360,0.0502794,134.06,134.01,7.62650755]
[1767516733160,0.0502794,134.06,134.02,0.8507861]
[1767516744858,0.77040566,134.11,134.03,0.8507861]
[1767516745058,88.93040566,134.13,134.05,0.8507861]
[1767516745258,6.7134,134.12,134.06,0.8507861]
[1767516745974,0.05464622,134.1,134.08,0.05079257]
[1767516756187,0.05464622,134.1,134.04,7.52787751]
[1767516756368,0.05464622,134.1,134.04,0.81087751]
[1767516757286,0.05464622,134.1,134.06,0.0538675]
[1767516757779,6.7151,134.09,134.06,0.0538675]
[1767516758885,7.48550566,134.09,134.06,0.0538675]
[1767516759984,6.7154,134.08,134.06,0.0538675]
[1767516762985,6.717,134.05,134.01,0.81087751]
[1767516764085,0.05208122,134.04,134.02,0.05646133]
[1767516775399,0.77040566,134.11,134.03,0.81087751]
[1767516775690,88.93040566,134.11,134.03,0.81087751]
[1767516775893,0.77040566,134.11,134.04,0.81087751]
[1767516776392,0.77040566,134.11,134.06,0.05120697]
[1767516776585,0.04793046,134.09,134.06,0.05120697]
[1767516776789,0.04793046,134.09,134.06,0.86208448]
[1767516777590,94.8738,134.12,134.06,0.86208448]
[1767516778595,94.8738,134.12,134.07,0.81087751]
[1767516778797,0.05209865,134.1,134.07,0.81087751]
[1767516780298,0.05209865,134.1,134.06,0.05120697]
[1767516781199,6.76659865,134.1,134.06,0.05120697]
[1767516781998,6.7149,134.09,134.06,0.05120697]
[1767516782198,6.7149,134.09,134.05,0.7915425]
[1767516782899,6.7149,134.09,134.03,0.7915425]
[1767516783295,0.05712607,134.07,134.05,0.05204933]
[1767516783491,0.04717038,134.07,134.05,0.05204933]
[1767516786506,6.76317038,134.07,134.03,0.7915425]
[1767516787302,6.76317038,134.07,134.0,0.7915425]
[1767516787303,6.7165,134.06,134.0,0.7915425]
[1767516787609,6.7165,134.06,134.02,0.05622361]
[1767516788005,6.7169,134.05,134.02,0.05622361]
[1767516788710,6.7169,134.05,134.0,0.7915425]
[1767516789707,0.04886511,134.04,134.01,0.04710904]
[1767516791212,94.8563,134.07,134.01,0.83865154]
[1767516791710,6.7166,134.06,134.01,0.83865154]
[1767516792215,0.05607682,134.05,134.01,0.83865154]
[1767516796320,0.05607682,134.05,134.02,0.7915425]
[1767516796510,88.14,134.07,134.02,0.7915425]
[1767516797713,0.05146464,134.06,134.02,0.7915425]
[1767516802819,6.76796464,134.06,134.01,0.04710904]
[1767516803012,6.76796464,134.06,134.01,0.83865154]
[1767516810842,0.05146464,134.06,134.01,7.55745154]
[1767516811044,0.05146464,134.06,134.02,0.82708508]
[1767516815946,6.76786464,134.06,134.01,0.04710904]
[1767516816538,6.7169,134.05,134.01,0.04710904]
[1767516823350,6.76786464,134.06,134.01,0.88250512]
[1767516828557,6.7174,134.05,134.01,0.04710904]
[1767516833060,6.7175,134.04,134.01,0.04710904]
[1767516834462,6.7179,134.03,133.97,7.55579608]
[1767516834855,1.20250031,134.05,133.97,0.83539608]
[1767516835059,5.49783244,134.04,133.97,0.83539608]
[1767516835261,1.20250031,134.05,133.97,0.83539608]
[1767516835456,5.49513338,134.04,133.97,0.83539608]
[1767516835658,0.04959356,134.02,134.0,0.05636145]
[1767516835962,6.76809356,134.02,133.97,0.83539608]
[1767516836154,6.76809356,134.02,133.96,6.7214]
[1767516838964,6.76809356,134.02,133.97,0.83539608]
[1767516839265,104.4805,134.06,133.98,0.88396176]
[1767516839266,88.16,134.05,133.98,0.88396176]
[1767516839761,88.16,134.05,133.98,1.6546678]
[1767516839965,94.8773,134.05,133.98,1.6546678]
[1767516840366,0.04945852,134.03,133.98,1.6546678]
[1767516840863,0.04945852,134.03,133.98,8.3749678]
[1767516843868,0.04945852,134.03,133.98,7.60426176]
[1767516844069,0.04945852,134.03,133.98,0.04856568]
[1767516844259,0.04945852,134.03,133.98,0.83526838]
[1767516845867,0.04945852,134.03,133.98,7.55536838]
[1767516847072,0.04945852,134.03,134.0,0.7867027]
[1767516847459,6.7164,134.06,134.0,0.7867027]
[1767516848668,0.05486217,134.04,134.02,0.05242288]
[1767516853276,7.54296821,134.04,133.98,0.7867027]
[1767516854377,7.54296821,134.04,134.0,0.05212909]
[1767516858582,6.718,134.03,134.0,0.05212909]
[1767516859689,6.7188,134.02,133.96,0.7867027]
[1767516859985,7.48950604,134.02,133.96,0.7867027]
[1767516860682,0.05311932,134.0,133.98,0.0470747]
[1767516866477,0.05311932,134.0,133.94,0.7867027]
[1767516866681,0.05311932,134.0,133.96,0.7867027]
[1767516867190,0.05311932,134.0,133.97,0.7867027]
[1767516867690,0.05311932,134.0,133.97,0.83977878]
[1767516872186,0.05311932,134.0,133.97,0.05307608]
[1767516874900,6.7199,133.99,133.97,0.05307608]
[1767516875892,6.77251932,134.0,133.97,0.05307608]
[1767516879195,0.05311932,134.0,133.97,0.83770333]
[1767516897319,0.77070604,134.04,133.97,0.83770333]
[1767516897514,0.77070604,134.06,133.98,0.78462725]
[1767516897912,0.77070604,134.06,133.99,0.78462725]
[1767516898110,5.5011942,134.05,133.99,0.78462725]
[1767516898311,0.77070604,134.06,133.99,0.78462725]
[1767516898507,0.05041937,134.04,134.01,0.04805008]
[1767516899016,6.76821937,134.04,134.01,0.04805008]
[1767516901321,0.05041937,134.04,133.96,0.77945284]
[1767516901621,104.4886,134.05,133.96,0.77945284]
[1767516902221,6.7184,134.02,133.96,0.77945284]
[1767516902417,6.76794841,134.02,133.99,0.0519513]
[1767516904827,6.7177,134.04,133.99,0.83140414]
[1767516905913,0.0570991,134.03,133.99,0.83140414]
[1767516907620,0.0570991,134.03,133.99,7.55100414]
[1767516907826,94.8964,134.06,134.0,0.77945284]
[1767516908828,0.05564715,134.04,134.0,7.49885284]
[1767516912726,0.05564715,134.04,134.0,0.77945284]
[1767516913331,0.05564715,134.04,134.0,7.49885284]
[1767516913821,0.05564715,134.04,134.01,0.77945284]
[1767516936142,0.05564715,134.04,133.99,0.75636422]
[1767516936850,0.05564715,134.04,134.0,0.70441292]
[1767516941050,0.05564715,134.04,134.01,0.70441292]
[1767516945948,88.18,134.06,134.02,0.70441292]
[1767516946156,1.20381889,134.11,134.02,0.70441292]
[1767516946350,5.51194298,134.1,134.02,0.70441292]
[1767516946652,6.7139,134.11,134.06,0.70441292]
[1767516947042,6.7139,134.11,134.07,0.04944307]
[1767516947449,0.05307136,134.1,134.07,0.04944307]
[1767516948156,0.05307136,134.1,134.07,0.75385599]
[1767516949343,11.75180835,134.12,134.07,0.75385599]
[1767516949549,94.8733,134.13,134.07,0.75385599]
[1767516950561,0.05603711,134.11,134.07,0.75385599]
[1767516951058,0.05603711,134.11,134.08,0.70441292]
[1767516954255,88.16,134.13,134.08,0.70441292]
[1767516954458,89.34381889,134.15,134.09,0.70441292]
[1767516954955,88.14,134.15,134.09,0.70441292]
[1767516955362,0.05172209,134.13,134.11,0.05209247]
[1767516959863,95.62117803,134.15,134.11,0.75650539]
[1767516960467,88.90927803,134.15,134.11,0.75650539]
[1767516960863,0.05738404,134.14,134.11,0.75650539]
[1767516962375,0.05738404,134.14,134.11,0.05209247]
[1767516963871,6.76988404,134.14,134.11,0.05209247]
[1767516964069,6.76988404,134.14,134.09,0.64133355]
[1767516964367,0.76927803,134.13,134.07,0.64133355]
[1767516965065,0.76927803,134.13,134.09,0.05265053]
[1767516965781,6.7134,134.12,134.09,0.05265053]
[1767516968571,7.48217803,134.13,134.09,0.05265053]
[1767516971480,6.7129,134.13,134.09,0.05265053]
[1767516971877,7.48217803,134.13,134.09,0.05265053]
[1767516978885,7.53906207,134.14,134.09,0.05265053]
[1767516980987,95.65906207,134.14,134.09,0.05265053]
[1767516985589,94.88978404,134.14,134.09,0.05265053]
[1767516985790,94.88978404,134.14,134.09,0.69398408]
[1767516995095,94.88978404,134.14,134.09,0.05265053]
[1767516995996,95.65906207,134.14,134.09,0.05265053]
[1767517005508,6.713,134.13,134.09,0.05265053]
[1767517006207,7.48227803,134.13,134.09,0.05265053]
[1767517014116,7.48347803,134.11,134.05,0.56572849]
[1767517014313,88.88927803,134.11,134.05,0.56572849]
[1767517014514,88.88927803,134.11,134.04,6.7174]
[1767517015022,88.88927803,134.11,134.04,7.28312849]
[1767517015211,88.88927803,134.11,134.06,0.05716493]
[1767517015818,6.7145,134.1,134.06,0.05716493]
[1767517016626,94.8339,134.11,134.06,0.05716493]
[1767517016827,95.60317803,134.11,134.06,0.05716493]
[1767517020221,0.04981836,134.1,134.06,0.05716493]
[1767517020823,19.03353392,134.16,134.08,0.51380084]
[1767517021025,93.61947989,134.15,134.08,0.51380084]
[1767517021231,88.12,134.15,134.08,0.51380084]
[1767517021625,6.7125,134.14,134.08,7.22900084]
[1767517022130,6.7125,134.14,134.1,0.04821197]
[1767517023035,0.05324282,134.13,134.1,0.04821197]
[1767517037943,6.76614282,134.13,134.1,0.04821197]
[1767517041839,6.7135,134.12,134.06,0.51380084]
[1767517042243,88.12,134.14,134.06,0.51380084]
[1767517042446,6.7139,134.11,134.06,0.51380084]
[1767517043035,0.05713811,134.1,134.07,0.0568193]
[1767517047341,0.05713811,134.1,134.07,0.57062014]
[1767517047547,6.7132,134.13,134.07,0.57062014]
[1767517048651,0.04909212,134.11,134.07,0.57062014]
[1767517048842,0.04909212,134.11,134.07,7.28642014]
[1767517050048,0.04909212,134.11,134.07,0.57062014]
[1767517055847,0.04909212,134.11,134.08,0.47455997]
[1767517056150,94.8324,134.14,134.08,0.47455997]
[1767517057153,94.8324,134.14,134.1,0.05253467]
[1767517058554,0.0475238,134.13,134.1,0.05253467]
[1767517073162,6.7604238,134.13,134.1,0.05253467]
[1767517080571,0.0475238,134.13,134.1,0.05253467]
[1767517099503,6.7604238,134.13,134.1,0.05253467]
[1767517106408,0.0475238,134.13,134.1,0.53418803]
[1767517106611,6.7123,134.15,134.1,0.53418803]
[1767517107708,0.05127783,134.14,134.1,0.53418803]
[1767517109504,0.05127783,134.14,134.11,0.48165336]
[1767517112214,25.74513392,134.16,134.11,0.48165336]
[1767517116019,0.05077532,134.15,134.11,0.48165336]
[1767517119421,0.05077532,134.15,134.12,0.45487794]
[1767517126021,0.05077532,134.15,134.12,7.16817794]
[1767517127526,19.03353392,134.16,134.12,7.16817794]
[1767517129523,18.35709732,134.16,134.14,0.45487794]
[1767517129729,16.29299953,134.16,134.14,0.50909667]
[1767517131027,9.953e-05,134.16,134.14,0.50909667]
[1767517132334,0.37832794,134.21,134.14,0.50909667]
[1767517132527,0.37832794,134.21,134.15,7.16677794]
[1767517136135,0.37832794,134.21,134.16,6.7113]
[1767517136339,0.37832794,134.21,134.17,0.05176924]
[1767517136535,18.7484052,134.22,134.17,0.50664718]
[1767517136741,6.7088,134.22,134.17,0.50664718]
[1767517140341,7.17358095,134.22,134.17,0.50664718]
[1767517143852,6.709,134.21,134.17,0.50664718]
[1767517147159,0.46478095,134.22,134.17,0.50664718]
[1767517165177,0.46478095,134.22,134.17,7.21744718]
[1767517165478,0.46478095,134.21,134.17,0.05176924]
[1767517170182,7.17378095,134.21,134.17,0.05176924]
[1767517170986,0.46478095,134.21,134.17,0.05176924]
[1767517171876,6.7099,134.19,134.17,0.05176924]
[1767517175996,7.22833641,134.2,134.17,0.05176924]
[1767517179793,0.51883641,134.18,134.13,0.51151624]
[1767517180181,7.22933641,134.18,134.13,0.51151624]
[1767517180382,0.51883641,134.17,134.12,0.51151624]
[1767517180781,0.05281177,134.16,134.13,0.05742606]
[1767517189697,0.57164818,134.16,134.13,0.05742606]
[1767517190098,0.57164818,134.16,134.1,0.51151624]
[1767517190992,7.28304818,134.16,134.1,7.22581624]
[1767517191193,7.28304818,134.16,134.12,0.05536091]
[1767517192191,0.57164818,134.16,134.12,0.05536091]
[1767517195097,0.51883641,134.15,134.12,0.05536091]
[1767517200602,0.51883641,134.15,134.08,6.7153]
[1767517200603,0.55282558,134.14,134.08,6.7153]
[1767517201009,0.55282558,134.14,134.09,7.27567182]
[1767517201605,0.05118872,134.13,134.1,0.05253211]
[1767517203712,0.05118872,134.13,134.1,6.76683211]
[1767517204013,0.55282558,134.14,134.1,6.76683211]
[1767517205016,0.05096111,134.13,134.1,6.76683211]
[1767517205612,0.55282558,134.18,134.12,0.56087182]
[1767517206817,0.55282558,134.18,134.14,0.05450029]
[1767517208618,0.55282558,134.18,134.14,6.76680029]
[1767517209117,0.05495607,134.17,134.14,6.76680029]
[1767517209520,0.05495607,134.17,134.14,0.05450029]
[1767517209521,0.60778165,134.17,134.14,0.05450029]
[1767517210929,0.60778165,134.17,134.14,6.76660029]
[1767517212522,0.05495607,134.17,134.14,6.76660029]
[1767517212729,0.05495607,134.17,134.15,6.7118]
[1767517215323,0.05495607,134.17,134.16,6.7114]
[1767517219538,0.55282558,134.21,134.16,6.7114]
[1767517219539,0.55282558,134.21,134.16,7.27227182]
[1767517220534,0.55282558,134.21,134.17,0.04938548]
[1767517223341,0.55282558,134.21,134.14,6.712]
[1767517223342,0.55282558,134.2,134.14,6.712]
[1767517224339,0.55282558,134.2,134.16,0.05203363]
[1767517224934,0.59982403,134.19,134.13,0.56087182]
[1767517225931,0.55282558,134.18,134.13,0.56087182]
[1767517226136,0.55282558,134.18,134.15,0.04944864]
[1767517229242,0.04699845,134.19,134.15,0.04944864]
[1767517229934,0.59982403,134.19,134.15,0.04944864]
[1767517230537,0.04699845,134.19,134.15,0.62467878]
[1767517230840,0.04699845,134.19,134.16,7.28663014]
[1767517233034,0.04699845,134.19,134.16,6.7114]
[1767517233238,0.63549771,134.19,134.16,6.7114]
[1767517234541,0.63549771,134.19,134.17,6.7108]
[1767517234542,0.04699845,134.19,134.17,6.7108]
[1767517235947,0.04699845,134.19,134.17,7.30953936]
[1767517240055,95.34513947,134.24,134.18,6.7103]
[1767517240940,0.57753947,134.24,134.19,6.7099]
[1767517241251,0.05050521,134.22,134.2,0.0483164]
[1767517242250,0.05050521,134.22,134.2,6.7576164]
[1767517243238,0.05050521,134.22,134.2,0.0483164]
[1767517265874,0.05050521,134.22,134.2,0.68864043]
[1767517268175,0.05050521,134.22,134.2,7.39774043]
[1767517269574,0.62434892,134.27,134.22,0.64032403]
[1767517270680,0.62434892,134.27,134.23,0.05163876]
[1767517271284,7.33024892,134.27,134.23,0.05163876]
[1767517273179,0.62434892,134.27,134.23,0.05163876]
[1767517275478,0.62434892,134.26,134.21,6.7088]
[1767517276580,0.05394817,134.25,134.22,0.05703608]
[1767517279581,0.67829709,134.25,134.22,0.05703608]
[1767517280385,0.62434892,134.24,134.17,0.64032403]
[1767517281083,0.62434892,134.22,134.17,0.64032403]
[1767517281392,0.05496211,134.21,134.18,0.04807002]
[1767517284594,0.67931103,134.21,134.18,0.04807002]
[1767517285794,7.38841103,134.21,134.18,0.04807002]
[1767517286491,0.62434892,134.2,134.18,0.04807002]
[1767517286695,0.62434892,134.19,134.13,7.35282403]
[1767517287392,0.62434892,134.19,134.14,6.7124]
[1767517287894,0.0474605,134.18,134.15,0.05241023]
[1767517290100,0.67180942,134.18,134.15,0.05241023]
[1767517296195,0.67180942,134.18,134.11,7.31971297]
[1767517296904,0.67180942,134.18,134.12,6.7133]
[1767517297299,0.67180942,134.18,134.14,0.05741547]
[1767517306010,0.6289813,134.17,134.1,0.60631297]
[1767517306909,0.04712462,134.15,134.12,0.05302003]
[1767517308212,0.67610592,134.15,134.12,0.05302003]
[1767517319520,0.04712462,134.15,134.12,0.05302003]
[1767517321321,0.70378474,134.15,134.12,0.05302003]
[1767517321711,0.65666012,134.14,134.09,24.76882314]
[1767517321912,0.65666012,134.14,134.09,24.13027164]
[1767517322126,0.65666012,134.14,134.09,17.41587164]
[1767517322412,0.04712462,134.15,134.1,0.6385515]
[1767517322618,0.70378474,134.15,134.1,0.6385515]
[1767517322819,0.70378474,134.15,134.11,0.05231407]
[1767517323418,0.65666012,134.14,134.11,0.05231407]
[1767517323617,0.65666012,134.14,134.09,24.13077164]
[1767517324017,0.65666012,134.13,134.09,24.13077164]
[1767517324217,0.65666012,134.13,134.09,17.41587164]
[1767517324420,0.65666012,134.13,134.07,6.7154]
[1767517324617,0.65666012,134.13,134.09,0.05411674]
[1767517324817,0.05177757,134.11,134.09,0.05411674]
[1767517325013,0.65666012,134.11,134.09,0.05411674]
[1767517325210,0.70731162,134.11,134.06,6.7162]
[1767517326123,0.70731162,134.11,134.03,0.6385515]
[1767517326124,0.65666012,134.1,134.03,0.6385515]
[1767517326623,0.04803922,134.08,134.05,0.05132982]
[1767517326920,0.65666012,134.09,134.03,0.6385515]
[1767517327120,0.05480734,134.08,134.03,0.6385515]
[1767517327318,0.71146746,134.08,134.05,0.05517577]
[1767517327525,0.71146746,134.08,134.03,0.6385515]
[1767517327713,0.05480734,134.08,134.03,0.6385515]
[1767517328612,0.05480734,134.08,134.03,7.3561515]
[1767517329816,0.05480734,134.08,134.04,0.05679621]
[1767517330120,0.71146746,134.08,134.04,0.05679621]
[1767517330915,0.71146746,134.08,134.01,0.6385515]
[1767517331519,0.65666012,134.06,133.99,18.47343752]
[1767517332120,0.05077999,134.04,134.01,0.05070007]
[1767517335918,0.70744011,134.04,134.01,0.05070007]
[1767517340729,0.05077999,134.04,134.01,0.05070007]
[1767517340922,0.65666012,134.07,134.02,0.76981949]
[1767517341123,0.65666012,134.07,134.02,1.40837099]
[1767517342031,0.0500646,134.06,134.02,1.40837099]
[1767517342834,0.0500646,134.06,134.02,8.12627099]
[1767517344034,0.0500646,134.06,134.02,1.40837099]
[1767517344228,0.0500646,134.06,134.01,0.05070007]
[1767517344432,0.0500646,134.06,134.01,0.82051956]
[1767517345326,0.0500646,134.06,134.01,0.68925157]
[1767517345526,0.0500646,134.06,134.02,0.76981949]
[1767517353047,6.7665646,134.06,134.02,0.76981949]
[1767517354244,7.39507391,134.06,134.01,0.68925157]
[1767517354547,0.62850931,134.05,134.01,0.05070007]
[1767517355737,6.7174,134.04,134.01,0.05070007]
[1767517362456,6.7179,134.03,134.01,0.05070007]
[1767517363656,6.7179,134.03,133.99,0.64738586]
[1767517364451,6.7179,134.03,133.98,0.76981949]
[1767517364744,0.04791837,134.02,133.99,0.05358045]
[1767517364948,6.76631837,134.02,133.99,0.05358045]
[1767517374654,0.04791837,134.02,133.99,0.05358045]
[1767517377061,0.62850931,134.05,134.0,0.64738586]
[1767517377263,88.18,134.06,134.0,0.64738586]
[1767517377762,88.80850931,134.06,134.0,0.64738586]
[1767517378167,0.05358191,134.04,134.02,0.05157813]
[1767517379362,0.62850931,134.08,134.02,1.46878348]
[1767517380471,0.04903388,134.06,134.02,1.46878348]
[1767517381566,0.04903388,134.06,134.03,0.62796335]
[1767517415700,0.69234192,134.06,133.97,0.68734051]
[1767517416004,0.64330804,134.06,133.97,0.68734051]
[1767517416706,0.05189604,134.03,134.0,0.73737772]
[1767517419616,0.05189604,134.03,133.94,106.73105426]
[1767517419617,0.69520408,134.03,133.98,0.68734051]
[1767517419804,0.64330804,134.03,133.98,0.68734051]
[1767517420804,6.76792434,134.02,133.99,0.05017929]
[1767517427917,0.04952434,134.02,133.99,0.7375198]
[1767517428207,88.80330804,134.07,133.99,0.7375198]
[1767517429108,0.04756378,134.04,133.99,0.7375198]
[1767517429806,0.04756378,134.04,134.0,0.68734051]
[1767517430506,88.16,134.07,134.02,0.68734051]
[1767517430915,7.35890804,134.08,134.02,0.68734051]
[1767517431713,0.05052907,134.06,134.02,0.68734051]
[1767517434820,0.05052907,134.06,134.03,0.05397927]
[1767517449229,0.05052907,134.06,134.0,0.67627133]
[1767517449230,0.63695554,134.05,134.0,0.67627133]
[1767517450322,0.05384339,134.04,134.01,0.05004651]
[1767517460640,0.69079893,134.04,134.01,0.05004651]
[1767517467045,0.05384339,134.04,134.01,0.05004651]
[1767517471261,0.68671891,134.04,134.01,0.05004651]
[1767517472452,7.40411891,134.04,133.99,6.7198]
[1767517472661,0.63287552,134.03,133.98,7.41182322]
[1767517473859,0.63287552,134.03,133.99,0.05198876]
[1767517483375,0.63287552,134.03,133.99,6.77178876]
[1767517484757,0.05384339,134.04,134.0,6.7193]
[1767517491371,0.05384339,134.04,133.99,7.4542237]
[1767517495172,0.05384339,134.04,134.0,0.68243494]
[1767517498171,0.05384339,134.04,134.0,7.40173494]
[1767517498375,0.05384339,134.04,134.01,0.68243494]
[1767517542721,7.42830649,134.04,133.99,0.70344431]
[1767517542913,0.71070649,134.04,133.99,0.70344431]
[1767517544826,6.718,134.03,133.99,0.70344431]
[1767517546325,0.05384339,134.04,133.99,0.70344431]
[1767517547815,0.05384339,134.04,134.01,0.65145555]
[1767517565235,0.05384339,134.04,133.99,0.72658109]
[1767517565443,0.71475917,134.04,133.99,0.72658109]
[1767517565841,0.66091578,134.02,133.97,0.67459233]
[1767517566043,0.66091578,134.01,133.93,0.67459233]
[1767517567035,0.05342713,133.98,133.96,0.05207639]
[1767517573347,6.77382713,133.98,133.93,1.44542083]
[1767517573549,6.77382713,133.98,133.94,0.67459233]
[1767517579446,6.77382713,133.98,133.95,0.05363905]
[1767517582053,7.43474291,133.98,133.93,0.7708285]
[1767517582257,0.66091578,133.97,133.92,7.39789233]
[1767517582761,0.66091578,133.97,133.92,0.67459233]
[1767517583148,0.66091578,133.97,133.93,0.02954304]
[1767517592161,7.38181578,133.97,133.93,0.02954304]
[1767517595567,0.62999672,133.96,133.93,0.02954304]
[1767517617293,0.62999672,133.95,133.9,6.7244]
[1767517617992,0.62297317,133.94,133.89,8.14305892]
[1767517618179,0.05411802,133.93,133.89,7.37223042]
[1767517622493,0.05411802,133.93,133.89,8.14305892]
[1767517623391,0.68463502,133.93,133.88,7.4962285]
[1767517623595,0.68463502,133.93,133.87,0.64763623]
[1767517623792,0.68463502,133.93,133.88,1.41846473]
[1767517626994,0.68463502,133.93,133.88,0.64763623]
[1767517627196,0.68463502,133.93,133.88,1.41846473]
[1767517627893,0.68463502,133.93,133.88,8.14376473]
[1767517629097,0.68463502,133.93,133.88,7.37293623]
[1767517629396,0.68463502,133.93,133.88,8.14376473]
[1767517630397,0.68463502,133.93,133.88,7.37293623]
[1767517630605,0.68463502,133.93,133.88,6.7253]
[1767517631096,0.68463502,133.93,133.88,7.37293623]
[1767517634500,0.630517,133.92,133.86,7.37363623]
[1767517634696,0.04699723,133.9,133.86,7.37363623]
[1767517636693,0.04699723,133.9,133.86,0.64763623]
[1767517638894,0.04699723,133.9,133.86,7.37393623]
[1767517641104,0.04699723,133.9,133.86,0.64763623]
[1767517641403,0.67751423,133.9,133.82,1.20577937]
[1767517642704,7.40241423,133.9,133.82,1.20577937]
[1767517643414,7.40241423,133.9,133.83,0.64763623]
[1767517643805,7.40241423,133.9,133.84,7.37503623]